[Event "Titled Tuesday Blitz July 18 Late 2023"]
[White "Mendez Fortes, Eduardo Jesus"]
[Black "Kleiman, Jake"]
[WhiteFideId "3502376"]
[BlackFideId "2020041"]
[WhiteElo "2645"]
[BlackElo "2485"]
[Result "0-1"]
[Round "4"]
[TimeControl "180+2"]
[Date "2023.07.18"]
[WhiteClock "0:00:14"]
[BlackClock "0:00:13"]
[Board "63"]

1. e4 {[%clk 0:03:00]}  e5 {[%clk 0:02:59]} 2. Nf3 {[%clk 0:03:00]}  Nc6 {[%clk 0:03:00]} 3. Bb5 {[%clk 0:03:00]}  a6 {[%clk 0:02:59]} 4. Ba4 {[%clk 0:03:00]}  Nf6 {[%clk 0:02:59]} 5. O-O {[%clk 0:03:00]}  b5 {[%clk 0:03:00]} 6. Bb3 {[%clk 0:03:00]}  Bc5 {[%clk 0:03:01]} 7. a4 {[%clk 0:02:59]}  Rb8 {[%clk 0:03:00]} 8. c3 {[%clk 0:02:59]}  d6 {[%clk 0:03:00]} 9. d4 {[%clk 0:02:59]}  Bb6 {[%clk 0:03:01]} 10. a5 {[%clk 0:03:00]}  Ba7 {[%clk 0:03:01]} 11. h3 {[%clk 0:03:00]}  h6 {[%clk 0:03:01]} 12. Be3 {[%clk 0:03:00]}  Ra8 {[%clk 0:03:01]} 13. Qd3 {[%clk 0:02:57]}  O-O {[%clk 0:02:57]} 14. Rd1 {[%clk 0:02:49]}  Re8 {[%clk 0:02:50]} 15. dxe5 {[%clk 0:02:36]}  Nxe5 {[%clk 0:02:30]} 16. Nxe5 {[%clk 0:02:36]}  Rxe5 {[%clk 0:02:29]} 17. Bxa7 {[%clk 0:02:34]}  Rxa7 {[%clk 0:02:29]} 18. Nd2 {[%clk 0:02:33]}  Bb7 {[%clk 0:02:23]} 19. Re1 {[%clk 0:02:33]}  c5 {[%clk 0:02:19]} 20. Bc2 {[%clk 0:02:25]}  Ra8 {[%clk 0:02:07]} 21. Qg3 {[%clk 0:02:18]}  Qc7 {[%clk 0:01:52]} 22. Nf3 {[%clk 0:02:01]}  Re6 {[%clk 0:01:37]} 23. Qf4 {[%clk 0:01:37]}  Rae8 {[%clk 0:01:34]} 24. Rad1 {[%clk 0:01:35]}  Bxe4 {[%clk 0:01:17]} 25. Bxe4 {[%clk 0:01:26]}  Nxe4 {[%clk 0:01:18]} 26. Nh4 {[%clk 0:01:03]}  g5 {[%clk 0:00:48]} 27. Qg4 {[%clk 0:01:02]}  h5 {[%clk 0:00:49]} 28. Qxh5 {[%clk 0:00:52]}  gxh4 {[%clk 0:00:49]} 29. Qxh4 {[%clk 0:00:53]}  Qe7 {[%clk 0:00:45]} 30. Qg4+ {[%clk 0:00:47]}  Kf8 {[%clk 0:00:44]} 31. Re3 {[%clk 0:00:46]}  Nf6 {[%clk 0:00:42]} 32. Rxe6 {[%clk 0:00:42]}  Qxe6 {[%clk 0:00:42]} 33. Qg5 {[%clk 0:00:40]}  Re7 {[%clk 0:00:29]} 34. Rd3 {[%clk 0:00:34]}  Ne4 {[%clk 0:00:24]} 35. Qh5 {[%clk 0:00:26]}  Qg6 {[%clk 0:00:18]} 36. Qh8+ {[%clk 0:00:21]}  Qg8 {[%clk 0:00:18]} 37. Qh6+ {[%clk 0:00:20]}  Qg7 {[%clk 0:00:17]} 38. Qh5 {[%clk 0:00:20]}  Re6 {[%clk 0:00:15]} 39. Rf3 {[%clk 0:00:19]}  Qg6 {[%clk 0:00:11]} 40. Qh8+ {[%clk 0:00:18]}  Ke7 {[%clk 0:00:10]} 41. Qa8 {[%clk 0:00:17]}  d5 {[%clk 0:00:10]} 42. Qb7+ {[%clk 0:00:16]}  Kf8 {[%clk 0:00:10]} 43. Qb8+ {[%clk 0:00:16]}  Kg7 {[%clk 0:00:10]} 44. Kh2 {[%clk 0:00:16]}  Qg5 {[%clk 0:00:09]} 45. g3 {[%clk 0:00:16]}  Qg6 {[%clk 0:00:08]} 46. Kg2 {[%clk 0:00:15]}  Ng5 {[%clk 0:00:08]} 47. Rf4 {[%clk 0:00:15]}  Re4 {[%clk 0:00:08]} 48. h4 {[%clk 0:00:15]}  Rxf4 {[%clk 0:00:09]} 49. Qxf4 {[%clk 0:00:15]}  Qe4+ {[%clk 0:00:09]} 50. f3 {[%clk 0:00:14]}  Qxf4 {[%clk 0:00:09]} 51. gxf4 {[%clk 0:00:15]}  Ne6 {[%clk 0:00:10]} 52. f5 {[%clk 0:00:15]}  Nf4+ {[%clk 0:00:10]} 53. Kg3 {[%clk 0:00:15]}  Nd3 {[%clk 0:00:11]} 54. b3 {[%clk 0:00:15]}  c4 {[%clk 0:00:11]} 55. b4 {[%clk 0:00:15]}  Nb2 {[%clk 0:00:10]} 56. Kf4 {[%clk 0:00:15]}  Nd1 {[%clk 0:00:11]} 57. Ke5 {[%clk 0:00:15]}  Nxc3 {[%clk 0:00:12]} 58. Kd4 {[%clk 0:00:15]}  Na2 {[%clk 0:00:11]} 59. Kxd5 {[%clk 0:00:16]}  c3 {[%clk 0:00:12]} 60. Kc5 {[%clk 0:00:14]}  c2 {[%clk 0:00:13]} 0-1


[Site "https://www.chess.com"]

[Event "Titled Tuesday Blitz July 18 Late 2023"]
[White "Glavina, Pablo"]
[Black "Zavgorodniy, Sergiy"]
[WhiteFideId "100234"]
[BlackFideId "14110148"]
[WhiteElo "2449"]
[BlackElo "2611"]
[Result "1-0"]
[Round "4"]
[TimeControl "180+2"]
[Date "2023.07.18"]
[WhiteClock "0:01:55"]
[BlackClock "0:00:57"]
[Board "67"]

1. c4 {[%clk 0:03:00]}  c5 {[%clk 0:02:20]} 2. Nf3 {[%clk 0:03:00]}  Nc6 {[%clk 0:02:19]} 3. d4 {[%clk 0:02:59]}  cxd4 {[%clk 0:02:20]} 4. Nxd4 {[%clk 0:03:00]}  Nf6 {[%clk 0:02:18]} 5. Nc3 {[%clk 0:03:00]}  g6 {[%clk 0:02:18]} 6. g3 {[%clk 0:02:57]}  Bg7 {[%clk 0:02:18]} 7. Bg2 {[%clk 0:02:57]}  O-O {[%clk 0:02:18]} 8. O-O {[%clk 0:02:58]}  d6 {[%clk 0:02:18]} 9. Nxc6 {[%clk 0:02:58]}  bxc6 {[%clk 0:02:18]} 10. Bxc6 {[%clk 0:02:58]}  Bh3 {[%clk 0:02:16]} 11. Bxa8 {[%clk 0:02:58]}  Qxa8 {[%clk 0:02:16]} 12. f3 {[%clk 0:02:57]}  Bxf1 {[%clk 0:02:16]} 13. Kxf1 {[%clk 0:02:58]}  Rc8 {[%clk 0:02:14]} 14. Qd3 {[%clk 0:02:57]}  Qc6 {[%clk 0:02:11]} 15. Be3 {[%clk 0:02:53]}  a6 {[%clk 0:01:57]} 16. b3 {[%clk 0:02:47]}  Nd7 {[%clk 0:01:23]} 17. Nd5 {[%clk 0:02:36]}  Kf8 {[%clk 0:01:20]} 18. Rd1 {[%clk 0:02:33]}  Ne5 {[%clk 0:01:18]} 19. Qb1 {[%clk 0:02:08]}  e6 {[%clk 0:01:15]} 20. Nf4 {[%clk 0:02:05]}  Nxf3 {[%clk 0:01:07]} 21. exf3 {[%clk 0:02:00]}  Qxf3+ {[%clk 0:01:07]} 22. Bf2 {[%clk 0:02:01]}  Qh1+ {[%clk 0:01:07]} 23. Ke2 {[%clk 0:01:57]}  Qxh2 {[%clk 0:00:57]} 24. Rh1 {[%clk 0:01:55]} 1-0


[Site "https://www.chess.com"]

[Event "Titled Tuesday Blitz July 18 Late 2023"]
[White "Gaitan, Juan Manuel"]
[Black "Manukian, Artak"]
[WhiteFideId "121657"]
[BlackFideId "13301373"]
[WhiteElo "2609"]
[BlackElo "2438"]
[Result "1-0"]
[Round "4"]
[TimeControl "180+2"]
[Date "2023.07.18"]
[WhiteClock "0:02:16"]
[BlackClock "0:02:07"]
[Board "69"]

1. d4 {[%clk 0:02:57]}  d5 {[%clk 0:02:59]} 2. c4 {[%clk 0:02:57]}  dxc4 {[%clk 0:03:00]} 3. e3 {[%clk 0:02:54]}  e5 {[%clk 0:02:59]} 4. Bxc4 {[%clk 0:02:53]}  exd4 {[%clk 0:03:00]} 5. exd4 {[%clk 0:02:53]}  Nf6 {[%clk 0:03:00]} 6. h3 {[%clk 0:02:53]}  c5 {[%clk 0:02:56]} 7. Nf3 {[%clk 0:02:52]}  cxd4 {[%clk 0:02:55]} 8. Nxd4 {[%clk 0:02:53]}  Bb4+ {[%clk 0:02:55]} 9. Nc3 {[%clk 0:02:53]}  O-O {[%clk 0:02:53]} 10. O-O {[%clk 0:02:52]}  a6 {[%clk 0:02:51]} 11. Bb3 {[%clk 0:02:49]}  Bc5 {[%clk 0:02:46]} 12. Be3 {[%clk 0:02:49]}  Nbd7 {[%clk 0:02:40]} 13. Rc1 {[%clk 0:02:35]}  Ne5 {[%clk 0:02:39]} 14. Re1 {[%clk 0:02:18]}  Qb6 {[%clk 0:02:07]} 15. Na4 {[%clk 0:02:16]} 1-0


[Site "https://www.chess.com"]

[Event "Titled Tuesday Blitz July 18 Late 2023"]
[White "Herman, Daniel"]
[Black "Chen, Justin"]
[WhiteFideId "30935008"]
[BlackFideId "2098199"]
[WhiteElo "2430"]
[BlackElo "2606"]
[Result "0-1"]
[Round "4"]
[TimeControl "180+2"]
[Date "2023.07.18"]
[WhiteClock "0:00:04"]
[BlackClock "0:00:59"]
[Board "70"]

1. d4 {[%clk 0:03:00]}  Nf6 {[%clk 0:02:59]} 2. c4 {[%clk 0:03:00]}  e6 {[%clk 0:03:00]} 3. Nf3 {[%clk 0:02:58]}  Bb4+ {[%clk 0:03:00]} 4. Nbd2 {[%clk 0:02:56]}  b6 {[%clk 0:02:59]} 5. a3 {[%clk 0:02:54]}  Bxd2+ {[%clk 0:02:58]} 6. Qxd2 {[%clk 0:02:51]}  Bb7 {[%clk 0:02:58]} 7. g3 {[%clk 0:02:46]}  O-O {[%clk 0:02:58]} 8. Bg2 {[%clk 0:02:45]}  d6 {[%clk 0:02:51]} 9. O-O {[%clk 0:02:44]}  Nbd7 {[%clk 0:02:51]} 10. b4 {[%clk 0:02:41]}  Qe7 {[%clk 0:02:48]} 11. Bb2 {[%clk 0:02:40]}  Be4 {[%clk 0:02:37]} 12. Bh3 {[%clk 0:02:33]}  Rfe8 {[%clk 0:02:28]} 13. Rfe1 {[%clk 0:02:30]}  c6 {[%clk 0:02:23]} 14. Qc3 {[%clk 0:02:26]}  d5 {[%clk 0:02:16]} 15. Nd2 {[%clk 0:02:17]}  Bg6 {[%clk 0:02:12]} 16. b5 {[%clk 0:01:44]}  cxb5 {[%clk 0:01:59]} 17. cxd5 {[%clk 0:01:42]}  exd5 {[%clk 0:01:51]} 18. Rac1 {[%clk 0:01:39]}  h5 {[%clk 0:01:46]} 19. Qc6 {[%clk 0:01:09]}  Rad8 {[%clk 0:01:41]} 20. Qxb5 {[%clk 0:01:08]}  Ne4 {[%clk 0:01:38]} 21. Nxe4 {[%clk 0:01:04]}  Bxe4 {[%clk 0:01:38]} 22. f3 {[%clk 0:00:58]}  Bg6 {[%clk 0:01:38]} 23. Qxd5 {[%clk 0:00:52]}  Qe3+ {[%clk 0:01:16]} 24. Kf1 {[%clk 0:00:34]}  Nc5 {[%clk 0:01:02]} 25. Qc4 {[%clk 0:00:17]}  Nd3 {[%clk 0:00:59]} 26. Qxd3 {[%clk 0:00:09]}  Bxd3 {[%clk 0:01:00]} 27. exd3 {[%clk 0:00:10]}  Qxd3+ {[%clk 0:01:01]} 28. Kg1 {[%clk 0:00:06]}  Rxe1+ {[%clk 0:00:59]} 29. Rxe1 {[%clk 0:00:04]}  Qd2 {[%clk 0:00:59]} 0-1


[Site "https://www.chess.com"]

[Event "Titled Tuesday Blitz July 18 Late 2023"]
[White "Stachanczyk, Jacek"]
[Black "HamedWafa4"]
[WhiteFideId "1116657"]
[WhiteElo "2428"]
[BlackElo "2604"]
[Result "0-1"]
[Round "4"]
[TimeControl "180+2"]
[Date "2023.07.18"]
[WhiteClock "0:01:43"]
[BlackClock "0:02:17"]
[Board "71"]

1. e4 {[%clk 0:02:55]}  e5 {[%clk 0:02:59]} 2. Nf3 {[%clk 0:02:54]}  Nc6 {[%clk 0:02:59]} 3. Bb5 {[%clk 0:02:53]}  a6 {[%clk 0:02:58]} 4. Ba4 {[%clk 0:02:52]}  Nf6 {[%clk 0:02:56]} 5. O-O {[%clk 0:02:52]}  Be7 {[%clk 0:02:53]} 6. Bb3 {[%clk 0:02:51]}  O-O {[%clk 0:02:48]} 7. Re1 {[%clk 0:02:51]}  b5 {[%clk 0:02:45]} 8. a4 {[%clk 0:02:49]}  d5 {[%clk 0:02:44]} 9. axb5 {[%clk 0:02:41]}  dxe4 {[%clk 0:02:40]} 10. bxc6 {[%clk 0:02:41]}  exf3 {[%clk 0:02:39]} 11. Qxf3 {[%clk 0:02:41]}  e4 {[%clk 0:02:39]} 12. Qg3 {[%clk 0:02:32]}  Ng4 {[%clk 0:02:25]} 13. h3 {[%clk 0:01:55]}  Bh4 {[%clk 0:02:24]} 14. Qf4 {[%clk 0:01:44]}  Bxf2+ {[%clk 0:02:21]} 15. Kh1 {[%clk 0:01:43]}  Bxe1 {[%clk 0:02:17]} 16. hxg4 {[%clk 0:01:43]} 0-1


[Site "https://www.chess.com"]

[Event "Titled Tuesday Blitz July 18 Late 2023"]
[White "Garcia Cuenca, Victor"]
[Black "Vaibhav Jayant Raut"]
[WhiteFideId "2250829"]
[BlackFideId "5089034"]
[WhiteElo "2409"]
[BlackElo "2604"]
[Result "1-0"]
[Round "4"]
[TimeControl "180+2"]
[Date "2023.07.18"]
[WhiteClock "0:01:49"]
[BlackClock "0:01:22"]
[Board "73"]

1. Nf3 {[%clk 0:03:00]}  Nf6 {[%clk 0:02:57]} 2. e3 {[%clk 0:03:01]}  e6 {[%clk 0:02:57]} 3. d4 {[%clk 0:03:01]}  b6 {[%clk 0:02:57]} 4. Be2 {[%clk 0:03:01]}  Bb7 {[%clk 0:02:58]} 5. O-O {[%clk 0:03:02]}  Be7 {[%clk 0:02:57]} 6. b3 {[%clk 0:03:02]}  O-O {[%clk 0:02:58]} 7. Bb2 {[%clk 0:03:03]}  d5 {[%clk 0:02:59]} 8. c4 {[%clk 0:03:02]}  dxc4 {[%clk 0:02:59]} 9. Bxc4 {[%clk 0:03:00]}  Nbd7 {[%clk 0:02:58]} 10. Qe2 {[%clk 0:03:00]}  c5 {[%clk 0:02:58]} 11. Rd1 {[%clk 0:02:59]}  cxd4 {[%clk 0:02:58]} 12. Nxd4 {[%clk 0:02:59]}  Rc8 {[%clk 0:02:53]} 13. Nc3 {[%clk 0:02:51]}  Qc7 {[%clk 0:02:48]} 14. Rac1 {[%clk 0:02:44]}  Qb8 {[%clk 0:02:46]} 15. Ba6 {[%clk 0:02:43]}  Nc5 {[%clk 0:02:42]} 16. Bxb7 {[%clk 0:02:43]}  Qxb7 {[%clk 0:02:43]} 17. f3 {[%clk 0:02:32]}  Rfd8 {[%clk 0:02:41]} 18. Kh1 {[%clk 0:02:28]}  h5 {[%clk 0:02:39]} 19. e4 {[%clk 0:02:21]}  h4 {[%clk 0:02:38]} 20. Qe3 {[%clk 0:02:07]}  h3 {[%clk 0:02:36]} 21. g3 {[%clk 0:02:06]}  Nfd7 {[%clk 0:02:17]} 22. Rd2 {[%clk 0:02:03]}  Ne5 {[%clk 0:02:13]} 23. Rcd1 {[%clk 0:02:02]}  a6 {[%clk 0:01:55]} 24. Nde2 {[%clk 0:01:52]}  Rxd2 {[%clk 0:01:53]} 25. Rxd2 {[%clk 0:01:53]}  Bg5 {[%clk 0:01:23]} 26. Qxg5 {[%clk 0:01:49]}  Nxf3 {[%clk 0:01:22]} 27. Rd8+ {[%clk 0:01:49]}  Kh7 {[%clk 0:01:22]} 28. Qh5# {[%clk 0:01:49]} 1-0


[Site "https://www.chess.com"]

[Event "Titled Tuesday Blitz July 18 Late 2023"]
[White "Villarreal, Agustin"]
[Black "Belov, Alexei"]
[WhiteFideId "125687"]
[BlackFideId "4128206"]
[WhiteElo "2390"]
[BlackElo "2600"]
[Result "1-0"]
[Round "4"]
[TimeControl "180+2"]
[Date "2023.07.18"]
[WhiteClock "0:00:38"]
[BlackClock "0:00:43"]
[Board "75"]

1. d4 {[%clk 0:03:00]}  e6 {[%clk 0:02:58]} 2. c4 {[%clk 0:02:59]}  d5 {[%clk 0:02:58]} 3. Nc3 {[%clk 0:02:59]}  Be7 {[%clk 0:02:58]} 4. cxd5 {[%clk 0:02:59]}  exd5 {[%clk 0:02:58]} 5. Nf3 {[%clk 0:02:59]}  c6 {[%clk 0:02:58]} 6. Qc2 {[%clk 0:02:56]}  g6 {[%clk 0:02:58]} 7. Bf4 {[%clk 0:02:36]}  Bf5 {[%clk 0:02:57]} 8. Qb3 {[%clk 0:02:36]}  Qb6 {[%clk 0:02:57]} 9. Nd2 {[%clk 0:02:36]}  Nf6 {[%clk 0:02:54]} 10. e3 {[%clk 0:02:35]}  Nbd7 {[%clk 0:02:51]} 11. Be2 {[%clk 0:02:33]}  Qxb3 {[%clk 0:02:50]} 12. Nxb3 {[%clk 0:02:32]}  O-O {[%clk 0:02:49]} 13. O-O {[%clk 0:02:32]}  a5 {[%clk 0:02:47]} 14. h3 {[%clk 0:02:32]}  a4 {[%clk 0:02:45]} 15. Nd2 {[%clk 0:02:32]}  Bb4 {[%clk 0:02:40]} 16. a3 {[%clk 0:02:31]}  Be7 {[%clk 0:02:35]} 17. f3 {[%clk 0:02:27]}  b5 {[%clk 0:02:15]} 18. e4 {[%clk 0:02:24]}  dxe4 {[%clk 0:02:15]} 19. fxe4 {[%clk 0:02:25]}  Be6 {[%clk 0:02:15]} 20. d5 {[%clk 0:02:13]}  cxd5 {[%clk 0:02:15]} 21. Bxb5 {[%clk 0:02:14]}  Nxe4 {[%clk 0:01:51]} 22. Ndxe4 {[%clk 0:01:59]}  dxe4 {[%clk 0:01:50]} 23. Nxe4 {[%clk 0:01:55]}  Nc5 {[%clk 0:01:49]} 24. Nc3 {[%clk 0:01:48]}  Rfd8 {[%clk 0:01:42]} 25. Rad1 {[%clk 0:01:46]}  Bb3 {[%clk 0:01:40]} 26. Rxd8+ {[%clk 0:01:42]}  Rxd8 {[%clk 0:01:40]} 27. Re1 {[%clk 0:01:41]}  Bf6 {[%clk 0:01:38]} 28. Be5 {[%clk 0:01:36]}  Bxe5 {[%clk 0:01:21]} 29. Rxe5 {[%clk 0:01:35]}  Nd3 {[%clk 0:01:21]} 30. Re2 {[%clk 0:01:06]}  Nf4 {[%clk 0:01:12]} 31. Rf2 {[%clk 0:01:06]}  Ne6 {[%clk 0:01:11]} 32. Bxa4 {[%clk 0:01:04]}  Nc5 {[%clk 0:01:04]} 33. Bb5 {[%clk 0:00:58]}  f5 {[%clk 0:00:57]} 34. Re2 {[%clk 0:00:54]}  Kf7 {[%clk 0:00:54]} 35. Re5 {[%clk 0:00:51]}  Nd3 {[%clk 0:00:52]} 36. Bxd3 {[%clk 0:00:51]}  Rxd3 {[%clk 0:00:51]} 37. Rb5 {[%clk 0:00:51]}  Bc4 {[%clk 0:00:45]} 38. Rb4 {[%clk 0:00:44]}  Be6 {[%clk 0:00:44]} 39. Rb7+ {[%clk 0:00:43]}  Kf6 {[%clk 0:00:44]} 40. Rxh7 {[%clk 0:00:40]}  Rd2 {[%clk 0:00:45]} 41. Rb7 {[%clk 0:00:40]}  f4 {[%clk 0:00:43]} 42. Ne4+ {[%clk 0:00:38]} 1-0


[Site "https://www.chess.com"]

[Event "Titled Tuesday Blitz July 18 Late 2023"]
[White "Voege, Tobias"]
[Black "Prieto Aranguren, Alain"]
[WhiteFideId "1270513"]
[BlackFideId "2268906"]
[WhiteElo "2595"]
[BlackElo "2372"]
[Result "1-0"]
[Round "4"]
[TimeControl "180+2"]
[Date "2023.07.18"]
[WhiteClock "0:00:23"]
[BlackClock "0:00:27"]
[Board "77"]

1. e4 {[%clk 0:02:56]}  c5 {[%clk 0:02:58]} 2. Nf3 {[%clk 0:02:56]}  Nc6 {[%clk 0:02:58]} 3. d4 {[%clk 0:02:56]}  cxd4 {[%clk 0:02:59]} 4. Nxd4 {[%clk 0:02:57]}  Nf6 {[%clk 0:02:59]} 5. Nc3 {[%clk 0:02:55]}  e5 {[%clk 0:02:58]} 6. Ndb5 {[%clk 0:02:55]}  d6 {[%clk 0:02:58]} 7. a4 {[%clk 0:02:54]}  a6 {[%clk 0:02:48]} 8. Na3 {[%clk 0:02:54]}  Be6 {[%clk 0:02:46]} 9. Bg5 {[%clk 0:02:50]}  Be7 {[%clk 0:02:45]} 10. Bxf6 {[%clk 0:02:50]}  Bxf6 {[%clk 0:02:44]} 11. Bc4 {[%clk 0:02:47]}  O-O {[%clk 0:02:43]} 12. O-O {[%clk 0:02:47]}  Rc8 {[%clk 0:02:28]} 13. Bd5 {[%clk 0:02:44]}  Nd4 {[%clk 0:02:10]} 14. Qd3 {[%clk 0:02:29]}  Qc7 {[%clk 0:02:05]} 15. Rae1 {[%clk 0:01:57]}  Bg5 {[%clk 0:01:52]} 16. f4 {[%clk 0:01:51]}  Bh6 {[%clk 0:01:41]} 17. f5 {[%clk 0:01:42]}  Bxd5 {[%clk 0:01:27]} 18. Nxd5 {[%clk 0:01:43]}  Qc5 {[%clk 0:01:27]} 19. b4 {[%clk 0:01:24]}  Nf3+ {[%clk 0:01:20]} 20. Kh1 {[%clk 0:01:22]}  Nxe1 {[%clk 0:01:19]} 21. Rxe1 {[%clk 0:01:20]}  Qf2 {[%clk 0:01:15]} 22. Ne7+ {[%clk 0:01:19]}  Kh8 {[%clk 0:01:14]} 23. Rf1 {[%clk 0:01:19]}  Qd2 {[%clk 0:01:08]} 24. Nxc8 {[%clk 0:01:13]}  Rxc8 {[%clk 0:01:07]} 25. Nc4 {[%clk 0:01:09]}  Qxb4 {[%clk 0:01:01]} 26. Nxd6 {[%clk 0:01:04]}  Rf8 {[%clk 0:00:55]} 27. Qd5 {[%clk 0:00:42]}  Kg8 {[%clk 0:00:52]} 28. a5 {[%clk 0:00:33]}  Bg5 {[%clk 0:00:29]} 29. Nxb7 {[%clk 0:00:22]}  Qxb7 {[%clk 0:00:29]} 30. Qxb7 {[%clk 0:00:21]}  Rd8 {[%clk 0:00:25]} 31. g3 {[%clk 0:00:19]}  h5 {[%clk 0:00:24]} 32. Qxa6 {[%clk 0:00:19]}  Rd2 {[%clk 0:00:24]} 33. Qc4 {[%clk 0:00:18]}  Rd4 {[%clk 0:00:23]} 34. Qxd4 {[%clk 0:00:18]}  exd4 {[%clk 0:00:23]} 35. a6 {[%clk 0:00:19]}  d3 {[%clk 0:00:23]} 36. cxd3 {[%clk 0:00:18]}  Be3 {[%clk 0:00:22]} 37. Rb1 {[%clk 0:00:19]}  Ba7 {[%clk 0:00:23]} 38. Rb7 {[%clk 0:00:17]}  Bd4 {[%clk 0:00:24]} 39. a7 {[%clk 0:00:18]}  Bxa7 {[%clk 0:00:25]} 40. Rxa7 {[%clk 0:00:19]}  g6 {[%clk 0:00:25]} 41. d4 {[%clk 0:00:20]}  g5 {[%clk 0:00:26]} 42. f6 {[%clk 0:00:19]}  Kf8 {[%clk 0:00:27]} 43. e5 {[%clk 0:00:20]}  Ke8 {[%clk 0:00:27]} 44. Re7+ {[%clk 0:00:21]}  Kf8 {[%clk 0:00:27]} 45. d5 {[%clk 0:00:21]}  g4 {[%clk 0:00:27]} 46. e6 {[%clk 0:00:22]}  h4 {[%clk 0:00:28]} 47. Rxf7+ {[%clk 0:00:22]}  Ke8 {[%clk 0:00:28]} 48. Rh7 {[%clk 0:00:22]}  Kd8 {[%clk 0:00:29]} 49. d6 {[%clk 0:00:22]}  Kc8 {[%clk 0:00:29]} 50. Rc7+ {[%clk 0:00:23]}  Kb8 {[%clk 0:00:27]} 51. f7 {[%clk 0:00:23]} 1-0


[Site "https://www.chess.com"]

[Event "Titled Tuesday Blitz July 18 Late 2023"]
[White "TimGrutter03"]
[Black "Shapiro, Daniel"]
[BlackFideId "2001780"]
[WhiteElo "2594"]
[BlackElo "2365"]
[Result "0-1"]
[Round "4"]
[TimeControl "180+2"]
[Date "2023.07.18"]
[WhiteClock "0:00:00"]
[BlackClock "0:00:04"]
[Board "78"]

1. d4 {[%clk 0:03:00]}  Nf6 {[%clk 0:02:59]} 2. Nc3 {[%clk 0:03:01]}  d5 {[%clk 0:02:58]} 3. Bf4 {[%clk 0:03:01]}  a6 {[%clk 0:02:58]} 4. e3 {[%clk 0:03:01]}  e6 {[%clk 0:02:58]} 5. g4 {[%clk 0:03:01]}  Bd6 {[%clk 0:02:58]} 6. g5 {[%clk 0:03:01]}  Ne4 {[%clk 0:02:45]} 7. Nxe4 {[%clk 0:02:57]}  dxe4 {[%clk 0:02:40]} 8. Bxd6 {[%clk 0:02:55]}  cxd6 {[%clk 0:02:39]} 9. h4 {[%clk 0:02:52]}  Nc6 {[%clk 0:02:05]} 10. Qd2 {[%clk 0:02:51]}  d5 {[%clk 0:01:41]} 11. Nh3 {[%clk 0:02:41]}  e5 {[%clk 0:01:39]} 12. dxe5 {[%clk 0:02:35]}  Nxe5 {[%clk 0:01:38]} 13. O-O-O {[%clk 0:02:36]}  Be6 {[%clk 0:01:27]} 14. Be2 {[%clk 0:02:35]}  Rc8 {[%clk 0:01:17]} 15. Nf4 {[%clk 0:02:31]}  Qc7 {[%clk 0:01:00]} 16. Kb1 {[%clk 0:02:25]}  Rd8 {[%clk 0:00:59]} 17. h5 {[%clk 0:02:13]}  O-O {[%clk 0:00:51]} 18. g6 {[%clk 0:02:12]}  h6 {[%clk 0:00:50]} 19. gxf7+ {[%clk 0:02:09]}  Bxf7 {[%clk 0:00:50]} 20. Rhg1 {[%clk 0:02:10]}  Nc4 {[%clk 0:00:36]} 21. Qd4 {[%clk 0:01:51]}  Qe5 {[%clk 0:00:35]} 22. Bxc4 {[%clk 0:01:46]}  Qxd4 {[%clk 0:00:34]} 23. Rxd4 {[%clk 0:01:47]}  dxc4 {[%clk 0:00:34]} 24. Rgd1 {[%clk 0:01:38]}  Rde8 {[%clk 0:00:20]} 25. Rd7 {[%clk 0:01:30]}  b5 {[%clk 0:00:19]} 26. Ra7 {[%clk 0:01:30]}  Re5 {[%clk 0:00:19]} 27. Rdd7 {[%clk 0:01:17]}  Rf5 {[%clk 0:00:18]} 28. a3 {[%clk 0:01:01]}  Rf6 {[%clk 0:00:18]} 29. Re7 {[%clk 0:00:45]}  Rd8 {[%clk 0:00:17]} 30. Kc1 {[%clk 0:00:43]}  Rf5 {[%clk 0:00:12]} 31. Rxa6 {[%clk 0:00:20]}  Bxh5 {[%clk 0:00:11]} 32. Nxh5 {[%clk 0:00:07]}  Rxh5 {[%clk 0:00:11]} 33. Kb1 {[%clk 0:00:08]}  Rd1+ {[%clk 0:00:07]} 34. Ka2 {[%clk 0:00:07]}  Rd2 {[%clk 0:00:07]} 35. Raa7 {[%clk 0:00:07]}  Rg5 {[%clk 0:00:06]} 36. a4 {[%clk 0:00:07]}  bxa4 {[%clk 0:00:05]} 37. Rxe4 {[%clk 0:00:06]}  Rxc2 {[%clk 0:00:05]} 38. Rxa4 {[%clk 0:00:05]}  c3 {[%clk 0:00:05]} 39. Kb3 {[%clk 0:00:03]}  Rxb2+ {[%clk 0:00:05]} 40. Kxc3 {[%clk 0:00:04]}  Rxf2 {[%clk 0:00:06]} 41. Kd3 {[%clk 0:00:04]}  Rgg2 {[%clk 0:00:05]} 42. Re7 {[%clk 0:00:02]}  Kh7 {[%clk 0:00:04]} 43. Rc4 {[%clk 0:00:00]}  Rd2+ {[%clk 0:00:04]} 0-1


[Site "https://www.chess.com"]

[Event "Titled Tuesday Blitz July 18 Late 2023"]
[White "Lizak, Peter"]
[Black "Real_taiatai"]
[WhiteFideId "731595"]
[WhiteElo "2591"]
[BlackElo "2338"]
[Result "0-1"]
[Round "4"]
[TimeControl "180+2"]
[Date "2023.07.18"]
[WhiteClock "0:00:00"]
[BlackClock "0:00:11"]
[Board "81"]

1. d4 {[%clk 0:03:00]}  Nf6 {[%clk 0:02:59]} 2. Nc3 {[%clk 0:03:01]}  e6 {[%clk 0:03:00]} 3. Bf4 {[%clk 0:03:00]}  d5 {[%clk 0:02:57]} 4. Nb5 {[%clk 0:02:59]}  Bd6 {[%clk 0:02:54]} 5. Nxd6+ {[%clk 0:02:58]}  cxd6 {[%clk 0:02:55]} 6. e3 {[%clk 0:02:57]}  Nc6 {[%clk 0:02:53]} 7. Nf3 {[%clk 0:02:55]}  Qe7 {[%clk 0:02:52]} 8. h3 {[%clk 0:02:54]}  h6 {[%clk 0:02:51]} 9. Be2 {[%clk 0:02:54]}  O-O {[%clk 0:02:50]} 10. O-O {[%clk 0:02:54]}  e5 {[%clk 0:02:49]} 11. Bh2 {[%clk 0:02:54]}  Bf5 {[%clk 0:02:46]} 12. c3 {[%clk 0:02:52]}  Rad8 {[%clk 0:02:40]} 13. Qb3 {[%clk 0:02:51]}  a6 {[%clk 0:02:25]} 14. Qa3 {[%clk 0:02:50]}  Qe6 {[%clk 0:02:23]} 15. b4 {[%clk 0:02:43]}  Rfe8 {[%clk 0:02:09]} 16. b5 {[%clk 0:02:43]}  axb5 {[%clk 0:02:08]} 17. Bxb5 {[%clk 0:02:43]}  Bxh3 {[%clk 0:02:04]} 18. gxh3 {[%clk 0:02:23]}  Qxh3 {[%clk 0:02:05]} 19. Be2 {[%clk 0:02:21]}  Ng4 {[%clk 0:01:56]} 20. Bg3 {[%clk 0:02:21]}  Nxe3 {[%clk 0:01:47]} 21. fxe3 {[%clk 0:01:54]}  Qxg3+ {[%clk 0:01:46]} 22. Kh1 {[%clk 0:01:54]}  exd4 {[%clk 0:01:45]} 23. cxd4 {[%clk 0:01:52]}  Nxd4 {[%clk 0:01:22]} 24. Nxd4 {[%clk 0:01:38]}  Rxe3 {[%clk 0:01:22]} 25. Qxe3 {[%clk 0:01:18]}  Qxe3 {[%clk 0:01:21]} 26. Rad1 {[%clk 0:01:19]}  Qh3+ {[%clk 0:01:15]} 27. Kg1 {[%clk 0:01:19]}  Qg3+ {[%clk 0:01:15]} 28. Kh1 {[%clk 0:01:19]}  Re8 {[%clk 0:01:07]} 29. Rf3 {[%clk 0:01:17]}  Qh4+ {[%clk 0:01:04]} 30. Kg2 {[%clk 0:01:15]}  Re4 {[%clk 0:01:04]} 31. Rfd3 {[%clk 0:00:45]}  Qg5+ {[%clk 0:00:51]} 32. Kf2 {[%clk 0:00:46]}  Qe5 {[%clk 0:00:49]} 33. Bf3 {[%clk 0:00:38]}  Qh2+ {[%clk 0:00:48]} 34. Kf1 {[%clk 0:00:29]}  Rf4 {[%clk 0:00:34]} 35. R1d2 {[%clk 0:00:29]}  Qh3+ {[%clk 0:00:27]} 36. Kf2 {[%clk 0:00:26]}  g5 {[%clk 0:00:27]} 37. Ne2 {[%clk 0:00:26]}  Rf5 {[%clk 0:00:19]} 38. Ng1 {[%clk 0:00:13]}  Qh4+ {[%clk 0:00:19]} 39. Kg2 {[%clk 0:00:13]}  g4 {[%clk 0:00:18]} 40. Bxd5 {[%clk 0:00:13]}  h5 {[%clk 0:00:14]} 41. Re3 {[%clk 0:00:11]}  Qg5 {[%clk 0:00:14]} 42. Red3 {[%clk 0:00:10]}  h4 {[%clk 0:00:13]} 43. Be4 {[%clk 0:00:08]}  Re5 {[%clk 0:00:12]} 44. Rd5 {[%clk 0:00:00]}  Qf4 {[%clk 0:00:11]} 0-1


[Site "https://www.chess.com"]